Cogmind - Beta 16 --- EXPLORER MODE // 2025.12.02 @ 14:49:33 Player: K.K.Y. Result: Destroyed by MI-GX6(R) with Subdweller Laser Performance ------------- Evolutions (0) 0 Regions Visited (3) 600 Robots Destroyed (30) 150 Value Destroyed (544) 544 Prototype IDs (1) 20 Alien Tech Used (0) 0 Bonus (0) 0 TOTAL SCORE: 1314 Bonus ------- None Cogmind --------- Core Integrity 0/250 Matter 290/300 Energy 16/100 System Corruption 3% Temperature Cool (12) Movement Hovering (150) Ox1 Location -10/Subcaves Parts ------- > --- POWER (1) -------- (None) > --- PROPULSION (3) --- Combat Airjet > --- UTILITY (2) ------ Medium Storage Unit Structural Scanner > --- WEAPON (2) ------- Improved EM Shotgun > --- INVENTORY (10) --- Improved Hover Unit Improved Hover Unit Improved Hover Unit Improved Hover Unit Improved Hover Unit High-capacity Storage Unit Improved EM Shotgun Improved EM Shotgun Datajack Peak State ------------ > --- POWER ------------ Makeshift Power Source > --- PROPULSION ------- Improved Hover Unit Improved Hover Unit Combat Airjet > --- UTILITY ---------- Medium Storage Unit Structural Scanner > --- WEAPON ----------- Improved EM Shotgun Mining Laser > --- INVENTORY -------- Improved Hover Unit Improved Hover Unit Improved Hover Unit Improved Hover Unit Improved Hover Unit High-capacity Storage Unit Improved EM Shotgun Improved EM Shotgun Improved EM Shotgun Datajack [Rating: 21] Favorites ----------- Power Ion Engine Engine Ion Engine Propulsion Improved Hover Unit Treads Light Treads Hover Unit Improved Hover Unit Utility Medium Storage Unit Device Structural Scanner Storage Medium Storage Unit Protection Light Armor Plating Weapon Improved EM Shotgun Energy Gun Improved EM Shotgun Ballistic Gun Assault Rifle Special Weapon Mining Laser Build | -11 -10 -10 -10 ------- Run | Yrd Mat Min Sub Slots Evolved 1 | . 1 . . Power . | . . . . Propulsion 1 | . 1 . . Utility . | . . . . Weapon . | . . . . Parts Attached 17 | 7 6 2 2 Power 2 | 1 . . 1 Engine 2 | 1 . . 1 Core . | . . . . Reactor . | . . . . Propulsion 7 | 2 4 1 . Treads 3 | 2 1 . . Leg . | . . . . Wheel . | . . . . Hover 4 | . 3 1 . Flight . | . . . . Utility 3 | 2 . 1 . Device 1 | . . 1 . Storage 1 | 1 . . . Processor . | . . . . Hackware . | . . . . Protection 1 | 1 . . . Artifact . | . . . . Weapon 5 | 2 2 . 1 Energy Gun 2 | . 2 . . Energy Cannon . | . . . . Ballistic Gun 2 | 2 . . . Ballistic Cannon . | . . . . Launcher . | . . . . Special Weapon 1 | . . . 1 Impact Weapon . | . . . . Slashing Weapon . | . . . . Piercing Weapon . | . . . . Special Melee Weapon . | . . . . Unidentified Prototypes 1 | . 1 . . Corrupted Parts 1 | . . 1 . System Corruption 2 | . . 2 . Parts Lost 5 | . . . 5 Power 1 | . . . 1 Propulsion 2 | . . . 2 Utility . | . . . . Weapon 2 | . . . 2 Highest Loss Streak 4 | . . . 4 To Critical Strikes . | . . . . Average Backups 6 | 1 2 10 10 Power . | . . . . Propulsion 2 | . . 5 5 Utility . | . . 1 1 Weapon 1 | . . 3 3 Tool/Special . | . . . . Unused Backups 9 | . . . 9 Power . | . . . . Propulsion 5 | . . . 5 Utility 1 | . . . 1 Weapon 2 | . . . 2 Tool/Special 1 | . . . 1 Average Slot Usage (%) 97 | . 96 97 97 Engine 11 | . 12 12 11 Treads 13 | . 30 . . Hover 22 | . 6 37 36 Device 5 | . . 9 12 Storage 12 | . 12 12 12 Protection 4 | . 10 . . Energy Gun 11 | . 4 25 12 Ballistic Gun 9 | . 20 . . Special Weapon 3 | . . . 10 Peak Build Rating 21 | 7 16 19 21 Average Rating 13 | 3 9 16 17 On Entrance 10 | . 7 15 19 Avg Prop Armor Cover (%) . | . . . . Naked Turns . | . . . . Heaviest Build 24 | 22 24 22 22 Greatest Support 60 | 40 60 26 26 Greatest Overweight (x) 7 | 1 7 1 . Average Overweight (x) . | . . . . Largest Inventory Capacity 10 | 10 10 10 10 Average Capacity 9 | 7 10 10 10 Most Carried 10 | 5 10 10 10 Average Carried 6 | 1 2 10 9 Final Capacity 10 | 10 10 10 10 Final Carried 10 | . 10 10 9 Class Distribution -------------------- 100% | Hacker-Mutant Dominant Class ---------------- Hacker-Mutant | -10/Materials Hacker-Mutant | -10/Mines Hacker-Mutant | -10/Subcaves Resources | -11 -10 -10 -10 ----------- Run | Yrd Mat Min Sub Matter Collected 612 | 203 355 30 24 Remotely . | . . . . Salvage Created 1065 | . 804 110 151 Parts 60 | . 40 14 6 Haulers Intercepted 2 | . 2 . . Recyclers Shooed 4 | . 4 . . Parts Field Recycled . | . . . . Retrieved Matter . | . . . . Parts Self-Destructed . | . . . . Prevented . | . . . . Parts Restored . | . . . . Kills | -11 -10 -10 -10 ------- Run | Yrd Mat Min Sub Combat Hostiles Destroyed 14 | . 6 3 5 Guns 13 | . 6 3 4 Cannons 1 | . . . 1 Classes Destroyed 10 | . 5 4 1 Worker 6 | . 6 . . Builder 1 | . . 1 . Tunneler 1 | . . 1 . Hauler 2 | . 2 . . Recycler 3 | . 3 . . Watcher 3 | . 3 . . Swarmer 4 | . . 2 2 Grunt 6 | . 6 . . Demolisher 1 | . . 1 . Subdweller 3 | . . . 3 Best Kill Streak 9 | . 9 2 2 Combat Bots Only 2 | . 2 2 2 Max Kills in Single Turn 2 | . 2 1 2 Gunslinging . | . . . . Exploded . | . . . . Melee . | . . . . Uniques/NPCs Destroyed . | . . . . Combat | -11 -10 -10 -10 -------- Run | Yrd Mat Min Sub Hostile Shots Fired 80 | . 30 7 43 Missed 20 | . 9 2 9 Hits 60 | . 21 5 34 Projectile 60 | . 21 5 34 AOE 2 | . . 1 1 Critical Strikes 1 | . . . 1 Damage Taken 812 | . 223 67 522 Core 261 | . 56 5 200 Absorbed by Shields . | . . . . Ignored by Resistances 484 | . 134 42 308 Core Remaining (%) 100 | 100 . . . Volleys Fired 80 | . 46 7 27 Largest 2 | . 2 2 2 Hottest 145 | . 90 90 145 Shots Fired 148 | . 92 14 42 Gun 135 | . 92 14 29 Cannon . | . . . . Launcher . | . . . . Special 13 | . . . 13 Kinetic 76 | . 76 . . Thermal 13 | . . . 13 Explosive . | . . . . Electromagnetic 59 | . 16 14 29 Robot Hit Streak 31 | . 28 31 11 Robot Miss Streak 2 | . 1 2 1 Penetration Max . | . . . . Secondary Targets 1 | . 1 . . Max Gunslinging Chain 1 | . 1 . . Shots Hit Robots 105 | . 78 10 17 Core Hits 51 | . 34 6 11 Critical Kills . | . . . . Critical Parts Destroyed . | . . . . Critical Strikes . | . . . . Melee Attacks . | . . . . Impact . | . . . . Slashing . | . . . . Piercing . | . . . . Sneak Attacks . | . . . . Combat Hostiles . | . . . . Follow-up Attacks . | . . . . Damage Inflicted 1636 | . 1165 153 318 Guns 1519 | . 1120 153 246 Cannons . | . . . . Explosions 43 | . 43 . . Melee . | . . . . Ramming 2 | . 2 . . Kinetic 832 | . 832 . . Thermal 115 | . 43 . 72 Explosive . | . . . . Electromagnetic 687 | . 288 153 246 Impact . | . . . . Slashing . | . . . . Piercing . | . . . . Highest Corruption 3 | . 1 3 3 Average Corruption 1 | . 1 1 3 Corruption Purged . | . . . . Corruption Blocked . | . . . . Effects 31 | . 8 4 19 Message Errors 8 | . 2 1 5 Matter Fused 3 | . 1 . 2 Heat Flow Errors 11 | . 2 2 7 Energy Discharges 3 | . 1 1 1 Data Loss (minor) 2 | . 1 . 1 Data Loss (major) 2 | . 1 . 1 Misfires 1 | . . . 1 Weapon Failures 1 | . . . 1 Overload Shots . | . . . . Overflow Damage . | . . . . Projectiles . | . . . . Explosions . | . . . . Melee . | . . . . Knockbacks . | . . . . Impact . | . . . . Kinetic . | . . . . Secondary . | . . . . Self-Inflicted Damage 24 | . . 24 . Shots 1 | . . 1 . Rammed . | . . . . Targets Rammed 1 | . 1 . . Kicked . | . . . . Crushed 1 | . 1 . . Highest Temperature 276 | . 276 205 251 Average Temperature 75 | . 78 64 92 Received Heat Transfer 303 | . 171 . 132 Siege Activations . | . . . . Martial Activations . | . . . . Shielding Activations . | . . . . Robots Disrupted . | . . . . Combat Hostiles . | . . . . Robots Corrupted . | . . . . Combat Hostiles . | . . . . Parts Fried 2 | . 1 . 1 Impact Corruptions . | . . . . Robots Melted . | . . . . Combat Hostiles . | . . . . Parts Melted 1 | . . . 1 Heat Transferred 200 | . 50 . 150 Parts Sabotaged . | . . . . Parts Stolen . | . . . . Parts Stripped . | . . . . Power Chain Reactions 2 | . 1 1 . Alert | -11 -10 -10 -10 ------- Run | Yrd Mat Min Sub Maximum Alert Level . | . . . . Low Security (%) 100 | 100 100 100 . Level 1 . | . . . . Level 2 . | . . . . Level 3 . | . . . . Level 4 . | . . . . Level 5 . | . . . . High Security . | . . . . Max Security . | . . . . Peak Influence 59 | . 59 50 . Initial . | . . . . Average 5 | . 5 4 . Influence Increases 384 | . 233 101 50 Destroy 0b10 Robot/C 220 | . 120 60 40 Destroy 0b10 Robot/NC 80 | . 70 10 . Destroy Leader 60 | . 40 10 10 Destroy Structure 9 | . 3 6 . Lose Combat Pursuer 15 | . . 15 . Influence Decreases 384 | . 233 101 50 Time Decay 384 | . 233 101 50 Squads Dispatched . | . . . . Investigation . | . . . . Extermination . | . . . . Reinforcement . | . . . . Assault . | . . . . Garrison . | . . . . Intercept . | . . . . Searches Triggered . | . . . . Construction Impeded . | . . . . Haulers Reinforced . | . . . . Active Scanning Responses . | . . . . Cargo Convoy Interrupts . | . . . . Stealth | -11 -10 -10 -10 --------- Run | Yrd Mat Min Sub Distress Signals . | . . . . Communications Jammed . | . . . . Distress Signals . | . . . . Times Spotted 23 | . 10 5 8 Peak Tracking Total 3 | . 2 2 3 Tactical Retreats 1 | . . 1 . Traps | -11 -10 -10 -10 ------- Run | Yrd Mat Min Sub Traps Triggered 5 | . 4 . 1 Indirectly . | . . . . Trap Hack Attempts . | . . . . Triggered . | . . . . Disarmed . | . . . . Reprogrammed . | . . . . Reused . | . . . . Traps Extracted . | . . . . Installed . | . . . . Triggered . | . . . . Machines | -11 -10 -10 -10 ---------- Run | Yrd Mat Min Sub Machines Disabled . | . . . . Max in Single Turn . | . . . . Machines Repaired . | . . . . Machines Dismantled . | . . . . Machines Sabotaged . | . . . . Overloaded Fab Kills . | . . . . Hacking | -11 -10 -10 -10 --------- Run | Yrd Mat Min Sub Machines Accessed 1 | . . . 1 Terminals . | . . . . Fabricators . | . . . . Repair Stations . | . . . . Recycling Units . | . . . . Scanalyzers . | . . . . Garrison Access . | . . . . Total Hacks 4 | . . . 4 Successful 4 | . . . 4 Failed . | . . . . Catastrophic . | . . . . Database Lockouts . | . . . . Manual . | . . . . Terminals . | . . . . Fabricators . | . . . . Repair Stations . | . . . . Recycling Units . | . . . . Scanalyzers . | . . . . Garrison Access . | . . . . Terminal Hacks 4 | . . . 4 Record 4 | . . . 4 Fabricator Hacks . | . . . . Repair Station Hacks . | . . . . Recycling Unit Hacks . | . . . . Scanalyzer . | . . . . Garrison Access Hacks . | . . . . Unauthorized Hacks . | . . . . Terminals . | . . . . Fabricators . | . . . . Repair Stations . | . . . . Recycling Units . | . . . . Scanalyzers . | . . . . Garrison Access . | . . . . Data Cores Recovered . | . . . . Used . | . . . . Hacking Detections . | . . . . Full Trace Events . | . . . . Feedback Events . | . . . . Feedback Blocked . | . . . . Robot Schematics Acquired . | . . . . Robots Built . | . . . . Authchips . | . . . . Time . | . . . . Total Robot Build Rating . | . . . . Part Schematics Acquired . | . . . . Parts Built . | . . . . Authchips . | . . . . Time . | . . . . Total Part Build Rating . | . . . . Part Studies Acquired . | . . . . Parts Repaired . | . . . . Time . | . . . . Parts Recycled . | . . . . Recycled Matter . | . . . . Retrieved Matter . | . . . . Retrieved Components . | . . . . Parts Scanalyzed . | . . . . Part Schematics Acquired . | . . . . Parts Damaged . | . . . . Bothacking | -11 -10 -10 -10 ------------ Run | Yrd Mat Min Sub Used RIF Installer . | . . . . Robots Hacked . | . . . . Non-combat . | . . . . Combat . | . . . . Robot Hacks Applied . | . . . . Relay Couplers Released . | . . . . Fabnet Peak Effective % . | . . . . Robots Rewired . | . . . . Allies Hacked . | . . . . Hacks Repelled . | . . . . Allies | -11 -10 -10 -10 -------- Run | Yrd Mat Min Sub Total Allies . | . . . . Largest Group . | . . . . Highest-Rated Group . | . . . . Highest-Rated Ally . | . . . . Total Orders . | . . . . Ally Attacks . | . . . . Total Damage . | . . . . Kills . | . . . . Allies Corrupted . | . . . . Allies Melted . | . . . . Intel | -11 -10 -10 -10 ------- Run | Yrd Mat Min Sub Active Infowar (turns) 1282 | . . 395 887 Structural 1282 | . . 395 887 Robot Analysis Total . | . . . . Derelict Logs Recovered . | . . . . Drone Launches . | . . . . Drone Recoveries . | . . . . Exploration | -11 -10 -10 -10 ------------- Run | Yrd Mat Min Sub Turns Passed 2654 | 59 1218 490 887 Spaces Moved 2040 | 51 872 493 624 Core 35 | 32 3 . . Treads 559 | 19 540 . . Legs . | . . . . Wheels . | . . . . Hover 1446 | . 329 493 624 Flight . | . . . . Fastest Speed 50 | 50 52 52 58 Average Speed 89 | 91 120 73 58 Slowest Speed 400 | 160 400 112 80 Overloaded Moves . | . . . . Propulsion Burnouts . | . . . . Robots Hopped . | . . . . Potential Cave-ins . | . . . . Cave-ins Triggered . | . . . . Exploration Rate (%) 61 | 3 98 95 49 Regions Visited 3 Branch Regions 2 Pre-discovered Areas . | . . . . Known Exits Taken 3 | 1 1 1 . Unknown Exits Taken . | . . . . Scrap Searched . | . . . . Spaces Dug . | . . . . Terrain Destroyed 9 | . 3 6 . Melee . | . . . . Projectile . | . . . . AOE 9 | . 3 6 . Terrain Rammed . | . . . . Walls Destroyed . | . . . . Machines Disabled . | . . . . Actions | -11 -10 -10 -10 --------- Run | Yrd Mat Min Sub Total 2703 | 62 955 606 1080 Wait 532 | . 3 104 425 Move 2037 | 50 871 492 624 Hop . | . . . . Pick Up 21 | 5 16 . . Fast Attach 3 | 2 . 1 . Attach 12 | 5 6 . 1 Detach 6 | . 6 . . Swap 3 | . . 1 2 Drop 8 | . 6 1 1 Fire 80 | . 46 7 27 Melee . | . . . . Ram . | . . . . Kick . | . . . . Crush 1 | . 1 . . Escape Stasis . | . . . . Rewire . | . . . . Trap . | . . . . Miscellaneous . | . . . . Route ------- -11/Scrapyard -10/Materials (discovered 6 exits: *Mat x3 / *Min x2 / *Sub) -10/Mines (discovered 3 exits: *Mat x2 / *Sub) -10/Subcaves (discovered 1 exit: [*Scr]) History --------- Turn | Location | Event 6 | -11/Scrapyard | Identified exit to Materials 6 | -11/Scrapyard | Discovered exit to Materials (range 15) 60 | -11/Scrapyard | Entered Materials 60 | -10/Materials | Evolved 1 slot: Propulsion x1 61 | -10/Materials | Met a group of wandering Federalists 312 | -10/Materials | Build established: Hacker-Mutant 503 | -10/Materials | Identified exit to Mines 503 | -10/Materials | Discovered exit to Mines (range 15) 621 | -10/Materials | Identified exit to Materials 621 | -10/Materials | Discovered exit to Materials (range 11) 927 | -10/Materials | Identified exit to Subcaves 927 | -10/Materials | Discovered exit to Subcaves (range 9) 1009 | -10/Materials | Discovered exit to Materials (range 16) 1200 | -10/Materials | Discovered exit to Materials (range 5) 1240 | -10/Materials | Discovered exit to Mines (range 9) 1278 | -10/Materials | Entered Mines 1389 | -10/Mines | Joined a pair of Derelicts in attacking an 0b10 outpost 1437 | -10/Mines | Discovered exit to Materials (range 6) 1445 | -10/Mines | Assembled infested the area 1450 | -10/Mines | Assisted by a Guerilla fighting off Assembled 1513 | -10/Mines | Discovered exit to Subcaves (range 8) 1518 | -10/Mines | A weapon hastily lodged in a ceiling crevice suddenly fell to the ground 1673 | -10/Mines | Discovered exit to Materials (range 6) 1768 | -10/Mines | Entered Subcaves 1769 | -10/Subcaves | Approached by a straggling Scientist 1870 | -10/Subcaves | Curiously followed by a Cobbler waking with a query about "LVR3C" 2327 | -10/Subcaves | Shifting Twisted Machinery released Barrage Gun 2350 | -10/Subcaves | Shifting Twisted Machinery released Sub. Laser 2376 | -10/Subcaves | Shifting Twisted Machinery released Sub. Monowheel 2377 | -10/Subcaves | Shifting Twisted Machinery released Multitool 2511 | -10/Subcaves | Visited Clippyterm 2513 | -10/Subcaves | Learned Research security intel 2513 | -10/Subcaves | Learned Factory garrison access intel 2537 | -10/Subcaves | Scientist uncovered a shortcut to Scraptown 2620 | -10/Subcaves | Core integrity fell below 50% 2640 | -10/Subcaves | Ambushed by Subdweller buried in earth 2643 | -10/Subcaves | Core integrity fell below 20% 2655 | -10/Subcaves | Destroyed by MI-GX6(R) with Subdweller Laser Last Messages --------------- 02579_ An expanding cloud of shrapnel blasts out in all directions. 02579_ Mining Laser destroyed. 02604_ System corrupted: Heat flow error (+104). 02607_ System corrupted: Imp. EM Shotgun failed to cycle. 02613_ Mak. Power Source destroyed. 02619_ T9-NFL(R) misfires. 02619_ Sub. Optics fried. 02619_ T9-NFL(R) destroyed. 02631_ Imp. Hover Unit destroyed. 02633_ Sub. Monowheel melted. 02633_ JJ-21D(R) destroyed. 02640_ Imp. Hover Unit destroyed. 02641_ NL-5VX(R): "ARGHSUB!" 02644_ Imp. EM Shotgun destroyed. 02644_ 8W-0YO(O) collects matter. 02648_ NL-5VX(R) affixes Scrap Shield Fragment to Scrap Shield. 02648_ 8W-0YO(O) collects matter. Map ----- +----------------------------------------------------+ | ?????????????????????????????????????????????????? | | ?????????????????????????????????????????????????? | | ?????????????????????????????????????????????????? | | ?????????????????????????????????????????????????? | | ?????????????????????????????????????????????????? | | ?????????????????????????????????????????????????? | | ?????????????????????????????????????????????????? | | ?????????????????????????????????????????????????? | | ?????????????????????????????????????????????????? | | ?????????????????????????????????????????????????? | | ?????????????????????????????????????????????????? | | ?????????????????????????????????????????????????? | | ?????????????????????????????????????????????????? | | ?????????????????????????????????????????????????? | | ?????????????????????????###########?????????????? | | ??????????????????????#################??????????? | | ?????????????????????###### # # "################ | | ???????????????????##### " ############# | | ???????????????????#### """### ## # ## | | ??????????????????### ### ##" "# ## | | ??????????????????### ;######"" ^ ## | | ??????????????????## ;######"" # # ### | | ?????????????????### ; ######## ##### ### | | ???????????????##### ; ######### "### # | | ???????????????#### R ;;#####?#### " ### = | | ??????????????### *@; # ###??#### ### *% | | ??????????????## "##???####### | | ??????????????## O ##?????#### | | ???????????? "? #### | | ?????????? R "" ### # # | | ??????????? """ #### | | ???????????" ### # ### "" #### | | ???????????"" ## # # ###" ###### ## ???# | | ??????????????? # ####" ########### #??? | | ????????????? # ## ###########??#########??? | | ????????????? ### "#" # ## #?######???????#####??? | | ?????????????####"" ###???????????????????????? | | ???????????????# ? ##????????????????????????? | | ??????????????????? ###??????????????????????????? | | ??????????????????? ###??????????????????????????? | | ?????????????????????????????????????????????????? | | ?????????????????????????????????????????????????? | | ?????????????????????????????????????????????????? | | ?????????????????????????????????????????????????? | | ?????????????????????????????????????????????????? | | ?????????????????????????????????????????????????? | | ?????????????????????????????????????????????????? | | ?????????????????????????????????????????????????? | | ?????????????????????????????????????????????????? | | ?????????????????????????????????????????????????? | +----------------------------------------------------+ Best States ------------- Heat Dissipation 25 Energy Generation 15 Energy Capacity 250 Matter Stores 300 Matter Capacity 300 Sight Range 16 Terrain Scan Density 10 Armor Coverage 150 Resistance: KI 35 Resistance: TH 35 Resistance: EX 35 Resistance: EM 35 Resistance: I 35 Resistance: S 35 Resistance: P 35 Evasion (%) 54 Recoil Reduction 3 Offensive Hacking 20 Item Schematics ----------------- None Robot Schematics ------------------ None Fabricated ------------ Nothing Repaired ---------- Nothing Studied --------- None Alien Tech Used ----------------- None Achievements -------------- None Challenges ------------ None Game ------ Seed StormReflexImmobilizer Manual? 0 Play Time 00:17:25 Cumulative 155.3 hours Start 2025.12.02 @ 14:36:23 End 2025.12.02 @ 14:49:33 Sessions 1 Manual Loads 0 Difficulty Explorer Special Mode None Game No. 197 Rogue 0 Adventurer 0 Explorer 197 Win Type - Total 0 Types 0/0/0/0/0/0/0/0/0/0 Lore% 70 Gallery% 66 Achievement% 52 Wizard Run 0 Options --------- Layout 1 ASCII 0 Keyboard 0 Movement Mouse Keybinds 0 Fullscreen 1 Font 24/Smallcaps Map View 50x35 Zoom Use 0% Tactical HUD 1 Map Filters NONE Filters NONE Steam 1 RUN: 2e020736-16e8-45a8-a6c0-d96874b6ea2c